fUSD/lending_fUSD_20240322
["ID","MTS","AMOUNT","RATE_DAILY","PERIOD"]
[320084636,1711141150018,-2000.0,0.00054794,120]
[320084637,1711141150043,-2000.0,0.00054794,120]
[320084638,1711141150068,-2000.0,0.00054794,120]
[320084639,1711141150090,-2000.0,0.00054794,120]
[320084640,1711141150115,-2000.0,0.00054794,120]
[320084641,1711141150139,-2000.0,0.00054794,120]
[320084642,1711141150161,-2000.0,0.00054794,120]
[320084643,1711141150190,-2000.0,0.00054794,120]
[320084644,1711141150215,-2000.0,0.00054794,120]
[320084645,1711141150239,-2000.0,0.00054794,120]
[320084646,1711141150263,-2000.0,0.00054794,120]
[320084647,1711141150285,-2000.0,0.00054794,120]
[320084648,1711141150308,-2000.0,0.00054794,120]
[320084649,1711141150330,-2000.0,0.00054794,120]
[320084650,1711141150352,-865.86,0.00054794,120]
[320084651,1711141150378,-2000.0,0.00054794,120]
[320084652,1711141150403,-2000.0,0.00054794,120]
[320084653,1711141150428,-2000.0,0.00054794,120]
[320084654,1711141150455,-2000.0,0.00054794,120]
[320084655,1711141150480,-2000.0,0.00054794,120]
[320084656,1711141150506,-2000.0,0.00054794,120]
[320084657,1711141150532,-2000.0,0.00054794,120]
[320084658,1711141150560,-2000.0,0.00054794,120]
[320084659,1711141150584,-2000.0,0.00054794,120]
[320084660,1711141150610,-2000.0,0.00054794,120]
[320084661,1711141150635,-2000.0,0.00054794,120]
[320084662,1711141150658,-2000.0,0.00054794,120]
[320084663,1711141150680,-2000.0,0.00054794,120]
[320084664,1711141150707,-2000.0,0.00054794,120]
[320084665,1711141150731,-2000.0,0.00054794,120]
[320084666,1711141150755,-2000.0,0.00054794,120]
[320084667,1711141150779,-10256.74,0.00054794,120]
[320084668,1711141150801,-2000.0,0.00054794,120]
[320084669,1711141150825,-2000.0,0.00054794,120]
[320084670,1711141150848,-2000.0,0.00054794,120]
[320084671,1711141151077,-2000.0,0.00054794,120]
[320084672,1711141151101,-2000.0,0.00054794,120]
[320084673,1711141151124,-2000.0,0.00054794,120]
[320084674,1711141151148,-1364.52715731,0.00054794,120]
[320084675,1711141151171,-1983.62,0.00054794,120]
[320084676,1711141151193,-1983.62,0.00054794,120]
[320084677,1711141151217,-1983.62,0.00054794,120]
[320084678,1711141151240,-1983.62,0.00054794,120]
[320084679,1711141151263,-1983.62,0.00054794,120]
[320084680,1711141151285,-1983.62,0.00054794,120]
[320084681,1711141151308,-1983.62,0.00054794,120]
[320084682,1711141151331,-1983.62,0.00054794,120]
[320084683,1711141151353,-1983.62,0.00054794,120]
[320084684,1711141151376,-1983.62,0.00054794,120]
[320084685,1711141151400,-1983.62,0.00054794,120]
[320084686,1711141151422,-1983.62,0.00054794,120]
[320084687,1711141151445,-1983.62,0.00054794,120]
[320084688,1711141151469,-1983.62,0.00054794,120]
[320084689,1711141151492,-1983.62,0.00054794,120]
[320084690,1711141151515,-1983.62,0.00054794,120]
[320084691,1711141151539,-1983.62,0.00054794,120]
[320084692,1711141151560,-1983.62,0.00054794,120]
[320084693,1711141151583,-1983.62,0.00054794,120]
[320084694,1711141151605,-1983.62,0.00054794,120]
[320084695,1711141151631,-1983.62,0.00054794,120]
[320084696,1711141151654,-1983.62,0.00054794,120]
[320084697,1711141151677,-1983.62,0.00054794,120]
[320084698,1711141151700,-1983.74791677,0.00054794,120]
[320084699,1711141151724,-922.0,0.00054794,120]
[320084700,1711141151746,-500.0,0.00054795,16]
[320084701,1711141151770,-500.0,0.00054795,16]
[320084702,1711141151793,-500.0,0.00054795,16]
[320084703,1711141151816,-500.0,0.00054795,16]
[320084704,1711141151839,-500.0,0.00054795,16]
[320084705,1711141151862,-500.0,0.00054795,26]
[320084706,1711141151886,-7547.61,0.00054795,120]
[320084707,1711141151910,-2748.58,0.00054795,120]
[320084708,1711141151933,-1206.33,0.00054795,120]
[320084710,1711141153084,214.0,0.00054794,120]
[320084711,1711141153407,255.08738535,0.0005,120]
[320084712,1711141153467,387.95971105,0.0005,30]
[320084713,1711141153760,676.62322973,0.0005,85]
[320084714,1711141154652,1822.08461984,0.0005,15]
[320084715,1711141155260,9829.37,0.00054794,120]
[320084716,1711141157078,1000.0,0.0004115,30]
[320084717,1711141158863,535.07981145,0.0005,28]
[320084718,1711141158964,2365.43961642,0.0005,120]
[320084719,1711141159247,1000.0,0.00041424,30]
[320084721,1711141413699,534.0,0.0002553,120]
[320084722,1711141565296,162.76436381,0.00026143,120]
[320084723,1711141602937,830.97459682,0.00016108,2]
[320084724,1711141648964,321.96681577,0.00016108,2]
[320084725,1711141667044,388.27089789,0.00016108,2]
[320084727,1711141753099,-182.7698554,0.00017293,2]
[320084728,1711141755170,-129.2401446,0.00017293,2]
[320084729,1711141755193,-20.76512263,0.00017797,2]
[320084741,1711141831721,-134.23487737,0.00017797,2]
[320084742,1711141831732,-171.32521911,0.00017798,2]
[320084743,1711141831743,-202.91189066,0.00017799,2]
[320084744,1711141831756,-507.21432147,0.00017799,2]
[320084745,1711141831783,-2559.17335098,0.00017799,2]
[320084746,1711141831866,-4182.64929833,0.00017799,2]
[320084747,1711141831876,-1090.7317,0.000178,2]
[320084748,1711141831887,-300.0,0.00017897,2]
[320084749,1711141831897,-208.01803139,0.00017898,2]
[320084750,1711141831907,-173.42568555,0.00017898,2]
[320084751,1711141831918,-150.0,0.00017898,2]
[320084752,1711141831928,-7114.87144551,0.000179,3]
[320084753,1711141831943,-430.35504437,0.000179,3]
[320084754,1711141831956,-2603.71306986,0.000179,3]
[320084755,1711141831978,-497.80079929,0.000179,3]
[320084756,1711141831990,-2612.32441227,0.000179,3]
[320084757,1711141832003,-444.06,0.000179,3]
[320084758,1711141832035,-1226.6500003,0.000179,3]
[320084759,1711141832049,-923.01110948,0.000179,3]
[320084760,1711141832061,-666.82923052,0.000179,3]
[320084764,1711141837567,-11643.89483568,0.000179,3]
[320084765,1711141837631,-1685.865,0.000179,3]
[320084766,1711141837693,-56309.8214763,0.000179,3]
[320084767,1711141837703,-25208.8368,0.000179,2]
[320084768,1711141837713,-1687.2747,0.000179,2]
[320084769,1711141837723,-1000.0,0.000179,2]
[320084770,1711141837733,-1118.49246639,0.00018,2]
[320085101,1711141841295,-602.48003327,0.00018,2]
[320085244,1711141842513,-1390.2286055,0.00018,2]
[320085248,1711141842528,-3151.7118707,0.00018,2]
[320085259,1711141842576,-22511.92528355,0.00018,2]
[320085263,1711141842587,-10031.00081035,0.00018,2]
[320085279,1711141842751,-3572.08152298,0.00018,2]
[320085288,1711142113080,639.60768106,0.00026118,120]
[320085290,1711142425412,3901.67588658,0.00012479,2]
[320085291,1711142838122,-167.00599753,0.00017084,2]
[320085293,1711142974178,-155.0,0.00017083,2]
[320085294,1711142974200,-129.39400247,0.00017084,2]
[320085295,1711142974224,-158.87495563,0.000178,2]
[320085296,1711142974243,-167.00483792,0.00017848,2]
[320085297,1711142974263,-4139.97158969,0.00017899,2]
[320085298,1711142974282,-656.25,0.000179,2]
[320085299,1711142974303,-213.44942167,0.00017999,2]
[320085300,1711142974323,-150.0,0.00017999,2]
[320085301,1711142974345,-4481.02477803,0.00018,2]
[320085306,1711143031722,-150.0,0.00017999,2]
[320085307,1711143031732,-2999.95,0.00018,2]
[320085308,1711143031838,-73511.27665509,0.00018,2]
[320085309,1711143031955,-928.10430523,0.00018,2]
[320085310,1711143031966,-5427.16119419,0.00018,2]
[320085311,1711143032067,-844.16361675,0.00018,2]
[320085313,1711143032076,-1029.50869994,0.00018,2]
[320085315,1711143032086,-893.6662,0.00018,2]
[320085317,1711143032095,-2081.60946035,0.00018,2]
[320085320,1711143032107,-491.25,0.00018,2]
[320085454,1711143037683,-1207.59138514,0.00018,2]
[320085456,1711143037694,-585.35783834,0.00018,2]
[320085463,1711143037802,-2436.24489166,0.00018,2]
[320085464,1711143037813,-150.0,0.00018,2]
[320085465,1711143037824,-150.0,0.00018,2]
[320085466,1711143037836,-150.0,0.00018,2]
[320085467,1711143037846,-150.0,0.00018,2]
[320085468,1711143037856,-150.0,0.00018,2]
[320085469,1711143037865,-150.0,0.00018,2]
[320085470,1711143037876,-150.0,0.00018,2]
[320085471,1711143037886,-150.0,0.00018,2]
[320085472,1711143037897,-150.0,0.00018,2]
[320085473,1711143037908,-150.0,0.00018,2]
[320085474,1711143037917,-150.0,0.00018,2]
[320085475,1711143037927,-150.0,0.00018,2]
[320085476,1711143037938,-150.0,0.00018,2]
[320085477,1711143037949,-150.0,0.00018,2]
[320085478,1711143037959,-150.0,0.00018,2]
[320085479,1711143037969,-150.0,0.00018,2]
[320085480,1711143037980,-150.0,0.00018,2]
[320085481,1711143037989,-150.0,0.00018,2]
[320085482,1711143038000,-150.0,0.00018,2]
[320085483,1711143038009,-150.0,0.00018,2]
[320085484,1711143038020,-150.0,0.00018,2]
[320085485,1711143038030,-150.0,0.00018,2]
[320085487,1711143038040,-150.0,0.00018,2]
[320085489,1711143038049,-150.0,0.00018,2]
[320085491,1711143038059,-150.0,0.00018,2]
[320085493,1711143038068,-150.0,0.00018,2]
[320085495,1711143038078,-150.0,0.00018,2]
[320085497,1711143038087,-150.0,0.00018,2]
[320085499,1711143038097,-150.0,0.00018,2]
[320085501,1711143038108,-150.0,0.00018,2]
[320085503,1711143038117,-150.0,0.00018,2]
[320085505,1711143038126,-181.3675944,0.00018,2]
[320085507,1711143038136,-158.87495563,0.0001842,2]
[320085509,1711143038147,-155.15394228,0.00018898,2]
[320085512,1711143038158,-155.24588426,0.00018898,2]
[320085514,1711143038168,-23900.0,0.0001895,2]
[320085516,1711143038178,-303.68,0.00018972,2]
[320085518,1711143038187,-169.72,0.00018974,2]
[320085520,1711143038197,-454.52,0.00018977,2]
[320085522,1711143038207,-2751.0,0.00018994,2]
[320085524,1711143038216,-1550.0,0.00019,3]
[320085526,1711143038226,-380.77,0.00019001,2]
[320085528,1711143038238,-250.0,0.00019004,2]
[320085530,1711143038247,-158.87495563,0.0001904,2]
[320085532,1711143038258,-261.6,0.0001904,2]
[320085534,1711143038267,-1631.36,0.00019055,2]
[320085536,1711143038277,-436.23,0.00019059,2]
[320085538,1711143038288,-150.0,0.00019074,2]
[320085540,1711143038297,-3069.88,0.00019088,2]
[320085542,1711143038307,-696.32,0.00019168,2]
[320085544,1711143038316,-151.47,0.00019227,2]
[320085546,1711143038328,-153.99,0.00019231,2]
[320085548,1711143038337,-153.5,0.00019234,2]
[320085550,1711143038347,-1028.45,0.00019337,2]
[320085552,1711143038356,-296.4,0.00019348,2]
[320085554,1711143038365,-515.42450655,0.00019589,2]
[320085557,1711143038379,-1023.51658001,0.00019589,2]
[320085559,1711143038391,-190.91179034,0.00019589,2]
[320085561,1711143038400,-172.97,0.00019651,2]
[320085563,1711143038410,-158.87495563,0.0001966,2]
[320085565,1711143038419,-18.15306962,0.00019699,2]
[320085568,1711143038434,-135.08093363,0.00019699,2]
[320085570,1711143038443,-1687.2747,0.0001971,2]
[320085572,1711143038453,-153.99,0.00019732,2]
[320085574,1711143038462,-771.35043236,0.00019738,2]
[320085580,1711143038501,-500.0,0.00019738,2]
[320085583,1711143038521,-364.89736001,0.00019738,2]
[320085585,1711143038534,-529.82133345,0.00019738,2]
[320085718,1711143039742,-9450.24767418,0.00019738,2]
[320085720,1711143039752,-1000.0,0.00019738,2]
[320085722,1711143039762,-264.72657292,0.00019838,2]
[320085724,1711143039775,-1748.56626615,0.00019838,2]
[320085727,1711143039788,-1120.0285415,0.00019838,2]
[320085731,1711143039809,-1124.02077438,0.00019838,2]
[320085740,1711143039889,-507.65784505,0.00019838,2]
[320085742,1711143039899,-136.42688173,0.00019838,2]
[320085759,1711143040055,-3292.95894173,0.00019838,2]
[320085767,1711143040114,-1178.56505868,0.00019838,2]
[320085936,1711143043142,-465.94505635,0.0001962,2]
[320085937,1711143043327,-491.23813932,0.0001962,2]
[320086078,1711143075602,200.0,0.00019522,30]
[320086079,1711143075722,200.0,0.00019522,30]
[320086080,1711143075753,200.0,0.00019522,30]
[320086081,1711143075808,200.0,0.00019522,30]
[320086082,1711143075847,221.96287476,0.00019522,30]
[320086083,1711143157098,177.25,0.00015493,2]
[320086084,1711143323470,288.2029564,0.00016717,2]
[320086085,1711143465252,170.48,0.00016712,2]
[320086086,1711143513390,441.02613942,0.00016802,2]
[320086087,1711143516398,4139.97158969,0.00016802,2]
[320086088,1711143517924,485.24181947,0.00016802,2]
[320086089,1711143527448,193.64578564,0.00016802,2]
[320086090,1711143532911,5510.79847024,0.00016802,2]
[320086091,1711143550829,449.84212653,0.00016802,2]
[320086092,1711143702323,300.7,0.0001547,2]
[320086093,1711143743825,175.26866146,0.00016714,2]
[320086094,1711144036142,506.28186044,0.00016802,2]
[320086095,1711144045353,165.04250727,0.00016802,2]
[320086096,1711144045772,1238.94442072,0.00016802,2]
[320086097,1711144052165,-163.56760572,0.00016803,2]
[320086098,1711144123860,165.04250727,0.00016802,2]
[320086099,1711144139003,485.24181947,0.00016802,2]
[320086100,1711144160091,-482.28576155,0.00016803,2]
[320086101,1711144168036,285.66,0.0001532,2]
[320086102,1711144173707,5926.317,0.00016802,2]
[320086103,1711144200733,165.04250727,0.00016802,2]
[320086146,1711144232914,-3537.64514157,0.00016803,2]
[320086147,1711144232926,-120.04068657,0.00016803,2]
[320086148,1711144232936,-535.60119832,0.00016824,2]
[320086149,1711144232945,-300.0,0.00016984,2]
[320086150,1711144232956,-1374.02,0.00017189,2]
[320086151,1711144232966,-150.0,0.00017205,2]
[320086152,1711144232977,-150.0,0.00017221,2]
[320086153,1711144232988,-23900.0,0.00017222,2]
[320086154,1711144232998,-250.0,0.00017233,2]
[320086155,1711144233008,-296.41,0.00017238,2]
[320086156,1711144233018,-250.0,0.00017239,2]
[320086157,1711144233028,-242.95,0.00017247,2]
[320086158,1711144233037,-499.99,0.00017247,2]
[320086159,1711144233048,-200.0,0.00017298,2]
[320086160,1711144233057,-200.0,0.0001731,2]
[320086161,1711144233068,-1379.24,0.00017352,2]
[320086162,1711144233081,-170.83,0.00017444,2]
[320086163,1711144233091,-175.26866144,0.00017551,2]
[320086164,1711144233101,-285.66,0.00017584,2]
[320086165,1711144233111,-170.83,0.00017671,2]
[320086166,1711144233122,-757.05,0.0001776,2]
[320086167,1711144233131,-195.21,0.00017808,10]
[320086168,1711144233142,-499.80555453,0.00017898,2]
[320086169,1711144233152,-193.44521256,0.00017898,2]
[320086170,1711144233163,-348.96297264,0.00017898,2]
[320086171,1711144233172,-890.50366658,0.00017898,2]
[320086172,1711144233182,-227.01870384,0.00017898,2]
[320086173,1711144233191,-296.17964588,0.00017898,2]
[320086174,1711144233200,-512.4299,0.00017898,2]
[320086175,1711144233210,-170.83,0.00017898,2]
[320086176,1711144233220,-2402.31940437,0.00017899,2]
[320086177,1711144233245,-1878.1,0.00017899,2]
[320086178,1711144233706,-1225.98128707,0.00017899,2]
[320086179,1711144233715,-3605.33572948,0.000179,2]
[320086180,1711144233727,-625.0,0.000179,2]
[320086181,1711144233739,-131274.47436755,0.000179,2]
[320086182,1711144233748,-214.51979716,0.000179,2]
[320086183,1711144233759,-478.521,0.00017996,2]
[320086184,1711144233769,-1916.38276743,0.00017999,2]
[320086185,1711144233778,-321.90177082,0.00018,2]
[320086186,1711144233788,-155.0,0.00018,2]
[320086187,1711144233797,-1207.59138514,0.00018,2]
[320086188,1711144233807,-166.57,0.00018005,2]
[320086189,1711144233816,-214.51979716,0.00018102,2]
[320086190,1711144233825,-170.83,0.00018126,2]
[320086191,1711144233835,-214.51979716,0.00018309,2]
[320086192,1711144233844,-170.83,0.00018353,2]
[320086193,1711144233853,-161.597189,0.00018356,2]
[320086194,1711144233863,-175.26866144,0.00018388,2]
[320086195,1711144233872,-166.88,0.00018466,2]
[320086196,1711144233881,-214.51979716,0.00018515,2]
[320086197,1711144233891,-214.51979716,0.00018721,2]
[320086198,1711144233900,-160.4,0.00018761,2]
[320086199,1711144233909,-214.51979716,0.00018928,2]
[320086200,1711144233919,-179.22,0.0001899,2]
[320086201,1711144233928,-232.34125266,0.00019,2]
[320086202,1711144233938,-1550.0,0.00019,3]
[320086203,1711144233947,-214.51979716,0.00019134,2]
[320086204,1711144233957,-200.0,0.00019178,2]
[320086205,1711144233967,-161.597189,0.00019178,2]
[320086206,1711144233976,-3843.36723217,0.000192,2]
[320086207,1711144233986,-175.26866144,0.00019226,2]
[320086208,1711144233996,-180.0,0.00019288,2]
[320086209,1711144234005,-214.51979716,0.00019341,2]
[320086210,1711144234015,-242.95,0.00019402,2]
[320086211,1711144234025,-21487.4715,0.00019482,2]
[320086212,1711144234034,-229.76329315,0.000195,2]
[320086213,1711144234043,-5282.5211,0.0001953,2]
[320086214,1711144234054,-214.51979716,0.00019547,2]
[320086215,1711144234063,-195.21,0.00019553,10]
[320086216,1711144234073,-150.0,0.0001956,2]
[320086217,1711144234085,-2562.0,0.0001963,2]
[320086218,1711144234094,-1251.0,0.0001963,2]
[320086219,1711144234103,-3000.0,0.0001963,2]
[320086220,1711144234113,-1462.817,0.0001963,2]
[320086221,1711144234123,-1065.049,0.0001963,2]
[320086222,1711144234132,-24903.89606644,0.0001963,2]
[320086223,1711144234161,-1002.20111171,0.0001963,2]
[320086224,1711144234177,-4596.78213031,0.0001963,2]
[320086225,1711144234190,-313.155,0.0001963,2]
[320086226,1711144234202,-1109.80142368,0.0001963,2]
[320086227,1711144234234,-539.96799798,0.0001963,2]
[320086228,1711144234275,-10454.19626988,0.0001963,2]
[320086229,1711144234285,-2446.0,0.0001963,2]
[320086230,1711144234295,-2518.00228,0.0001964,2]
[320086231,1711144234306,-150.0,0.00019707,2]
[320086232,1711144234315,-214.51979716,0.00019753,2]
[320086233,1711144234325,-3173.0720661,0.00019834,2]
[320086234,1711144234335,-206.10677387,0.00019836,2]
[320086235,1711144234345,-155.0,0.00019836,2]
[320086236,1711144234355,-204.56346196,0.00019836,2]
[320086237,1711144234364,-11100.1222509,0.00019847,2]
[320086238,1711144234374,-285.66,0.00019848,2]
[320086239,1711144234384,-335.39,0.0001986,2]
[320086240,1711144234393,-335.39,0.00019912,2]
[320086241,1711144234403,-1374.02,0.00019928,2]
[320086242,1711144234414,-214.51979716,0.0001996,2]
[320086243,1711144234423,-335.39,0.00019965,2]
[320086244,1711144234434,-757.05,0.0001998,2]
[320086245,1711144234443,-500.0,0.0002,5]
[320086246,1711144234453,-300.46257995,0.0002,2]
[320086247,1711144234463,-642.0,0.0002,15]
[320086248,1711144234472,-2340.09314457,0.0002,2]
[320086249,1711144234486,-155.0,0.0002,2]
[320086250,1711144234495,-161.597189,0.0002,2]
[320086251,1711144234506,-150.0,0.0002,2]
[320086252,1711144234517,-335.39,0.00020017,2]
[320086253,1711144234527,-443.06698037,0.0002002,2]
[320086254,1711144234537,-175.26866144,0.00020063,2]
[320086255,1711144234547,-335.39,0.00020069,2]
[320086256,1711144234558,-167.0,0.00020071,2]
[320086257,1711144234567,-3457.0,0.000201,2]
[320086258,1711144234577,-780.0,0.000201,2]
[320086259,1711144234587,-2518.00228,0.0002012,2]
[320086260,1711144234598,-335.39,0.00020122,2]
[320086261,1711144234608,-214.51979716,0.00020166,2]
[320086262,1711144234618,-335.39,0.00020174,2]
[320086263,1711144234628,-154.0,0.00020225,2]
[320086264,1711144234639,-160.0,0.00020225,2]
[320086265,1711144234649,-453.0,0.00020225,2]
[320086266,1711144234659,-335.39,0.00020226,2]
[320086267,1711144234668,-335.39,0.00020278,2]
[320086268,1711144234678,-335.39,0.00020331,2]
[320086269,1711144234689,-335.39,0.00020383,2]
[320086270,1711144234698,-335.39,0.00020435,2]
[320086271,1711144234709,-443.06698031,0.00020472,2]
[320086272,1711144234719,-335.39,0.00020487,2]
[320086273,1711144234728,-335.39,0.0002054,2]
[320086274,1711144234738,-155.48665898,0.00020578,2]
[320086275,1711144234749,-335.39,0.00020592,2]
[320086276,1711144234758,-335.39,0.00020644,2]
[320086277,1711144234768,-1000.0,0.00020671,2]
[320086278,1711144234778,-335.39,0.00020697,2]
[320086279,1711144234789,-2518.00228,0.0002074,2]
[320086280,1711144234799,-335.39,0.00020749,2]
[320086281,1711144234809,-399.45510099,0.0002079,2]
[320086282,1711144234819,-399.4551009,0.0002079,2]
[320086283,1711144234830,-399.4551009,0.0002079,2]
[320086284,1711144234840,-399.4551009,0.0002079,2]
[320086285,1711144234851,-399.4551009,0.0002079,2]
[320086286,1711144234862,-6040.89741873,0.0002079,2]
[320086287,1711144234872,-6040.8974187,0.0002079,2]
[320086288,1711144234881,-6040.8974187,0.0002079,2]
[320086289,1711144234891,-6040.8974187,0.0002079,2]
[320086290,1711144234901,-335.39,0.00020801,2]
[320086291,1711144234910,-200.0,0.00020818,2]
[320086292,1711144234920,-200.0,0.00020818,2]
[320086293,1711144234930,-335.39,0.00020853,2]
[320086294,1711144234940,-229.7816488,0.00020893,2]
[320086295,1711144234950,-1012.0,0.00020899,2]
[320086296,1711144234961,-49770.5632,0.00020899,2]
[320086297,1711144234971,-4067.21505258,0.000209,2]
[320086298,1711144234981,-2069.6273,0.000209,2]
[320086299,1711144234991,-1000.0,0.000209,2]
[320086300,1711144235002,-208.3268691,0.000209,2]
[320086301,1711144235011,-175.26866144,0.000209,2]
[320086302,1711144235021,-1407.6756,0.000209,2]
[320086303,1711144235031,-162.68141364,0.000209,2]
[320086304,1711144235042,-12371.69132285,0.000209,2]
[320086305,1711144235054,-443.06698031,0.00020925,2]
[320086306,1711144235064,-12917.95558065,0.0002098,2]
[320086307,1711144235075,-500.0,0.0002099,2]
[320086308,1711144235091,-164.58473186,0.0002099,2]
[320086309,1711144235102,-155.28662395,0.00020998,2]
[320086310,1711144235113,-155.0,0.00020998,2]
[320086311,1711144235123,-155.0,0.00020998,2]
[320086312,1711144235134,-198.69339301,0.00020998,2]
[320086313,1711144235144,-205.13020202,0.00020998,2]
[320086314,1711144235155,-155.0,0.00020998,2]
[320086315,1711144235165,-1847.07618182,0.00020998,2]
[320086316,1711144235176,-155.0,0.00020998,2]
[320086317,1711144235186,-483.47540217,0.00020998,2]
[320086318,1711144235196,-400.0,0.00020998,2]
[320086319,1711144235206,-8255.49357206,0.00020998,2]
[320086320,1711144235216,-1810.39639637,0.00020998,2]
[320086321,1711144235227,-155.0,0.00020998,2]
[320086322,1711144235237,-200.80824684,0.00020998,2]
[320086323,1711144235248,-2922.82399565,0.00020998,2]
[320086324,1711144235259,-179.89302083,0.00020998,2]
[320086325,1711144235269,-343.59981422,0.00020998,2]
[320086326,1711144235280,-596.65433169,0.00020998,2]
[320086327,1711144235290,-3062.99632509,0.00020998,2]
[320086328,1711144235300,-155.93625809,0.00020998,2]
[320086329,1711144235310,-253.23429407,0.00020998,2]
[320086330,1711144235320,-1000.0,0.00020998,2]
[320086331,1711144235331,-155.0,0.00020998,2]
[320086332,1711144235341,-403.5154761,0.00020998,2]
[320086333,1711144235351,-197.81426473,0.00020998,2]
[320086334,1711144235361,-199.45935512,0.00020998,2]
[320086335,1711144235372,-155.0,0.00020998,3]
[320086336,1711144235382,-200.0,0.00020998,2]
[320086337,1711144235392,-4303.65066467,0.00020998,2]
[320086338,1711144235403,-323.11942737,0.00020999,5]
[320086339,1711144235414,-6312.35071515,0.00020999,2]
[320086340,1711144235424,-500.0,0.00020999,2]
[320086341,1711144235435,-500.0,0.00020999,2]
[320086342,1711144235445,-268.54715807,0.00020999,2]
[320086343,1711144235455,-500.0,0.00020999,2]
[320086344,1711144235465,-500.0,0.00020999,2]
[320086345,1711144235475,-500.0,0.00020999,2]
[320086346,1711144235485,-500.0,0.00020999,2]
[320086347,1711144235496,-500.0,0.00020999,2]
[320086348,1711144235507,-500.0,0.00020999,2]
[320086349,1711144235519,-500.0,0.00020999,2]
[320086350,1711144235529,-500.0,0.00020999,2]
[320086351,1711144235539,-500.0,0.00020999,2]
[320086352,1711144235550,-500.0,0.00020999,2]
[320086353,1711144235560,-500.0,0.00020999,2]
[320086354,1711144235572,-500.0,0.00020999,2]
[320086355,1711144235582,-500.0,0.00020999,2]
[320086356,1711144235592,-500.0,0.00020999,2]
[320086357,1711144235603,-500.0,0.00020999,2]
[320086358,1711144235613,-618.72787616,0.00020999,2]
[320086359,1711144235623,-366.92612944,0.00020999,2]
[320086360,1711144235633,-712.02089859,0.00021,2]
[320086361,1711144235643,-556029.9057318,0.00021,2]
[320086362,1711144235659,-265.70121733,0.00021,2]
[320086363,1711144235671,-1193.1734216,0.00021,2]
[320086364,1711144235684,-1259.8767075,0.00021,2]
[320086365,1711144235696,-6863.44812105,0.00021,2]
[320086398,1711144237983,-214.51979716,0.00020372,2]
[320086400,1711144237993,-2908.58020284,0.0002079,2]
[320086402,1711144238009,-1809.334545,0.0002079,2]
[320086405,1711144238022,-326.5,0.0002079,2]
[320086406,1711144238035,-996.48267086,0.0002079,2]
[320086408,1711144238045,-161.597189,0.00020822,2]
[320086410,1711144238055,-319.16815656,0.000209,2]
[320086412,1711144238065,-11363.97922172,0.00021,2]
[320086414,1711144238078,-2114.73752064,0.00021,2]
[320086417,1711144238099,-31330.044,0.00021,2]
[320086420,1711144238119,-839.54893376,0.00021,2]
[320086422,1711144238130,-254.99999,0.00021,2]
[320086440,1711144238259,-654.81336607,0.00021,2]
[320086444,1711144238271,-45101.65151293,0.00021,2]
[320086447,1711144238282,-1913.88732847,0.00021,2]
[320086450,1711144238293,-313.5,0.00021,2]
[320086840,1711144242396,-214.51979716,0.00020579,2]
[320086841,1711144242406,-45067.71620453,0.00021,2]
[320086842,1711144242459,-253.08999977,0.00021,2]
[320086843,1711144242471,-250.958708,0.00021,2]
[320086844,1711144242483,-573.37627699,0.00021,2]
[320086845,1711144242495,-3261.90000002,0.00021,2]
[320086897,1711144243101,-25753.18496611,0.00021,2]
[320086899,1711144243116,-623151.9999999,0.00021,2]
[320086902,1711144243129,-305993.27605968,0.00021,2]